[Event "RUS-chT Men Rapid 2019"]
[Site "Sochi"]
[Date "2019.10.18"]
[Round "3.6"]
[White "Lysyj, Igor"]
[Black "Yuffa, Daniil"]
[Result "0-1"]
[ECO "E97"]
[WhiteElo "2596"]
[BlackElo "2577"]
[Annotator "ChessBase"]
[PlyCount "132"]
[EventDate "2019.10.18"]
[EventType "swiss"]
[EventCountry "RUS"]
[SourceTitle "playchess.com"]
[Source "ChessBase"]
[SourceQuality "1"]
[TimeControl "900+10"]

1. d4 {[%emt 0:00:00]} Nf6 {[%emt 0:00:00]} 2. c4 {[%emt 0:00:00]} g6 {[%emt 0:00:23]} 3. Nc3 {[%emt 0:00:00]} Bg7 {[%emt 0:00:01]} 4. e4 {[%emt 0:00:00]} d6 {[%emt 0:00:01]} 5. Be2 {[%emt 0:00:00]} O-O {[%emt 0:00:05]} 6. Nf3 {[%emt 0:00:01]} e5 {[%emt 0:00:10]} 7. O-O {[%emt 0:00:03]} Nc6 {[%emt 0:00:02]} 8. d5 {[%emt 0:00:01]} Ne7 {[%emt 0:00:02]} 9. Bg5 {[%emt 0:00:03]} h6 {[%emt 0:00:24]} 10. Bd2 {[%emt 0:00:03]} a5 {[%emt 0:01:15]} 11. Rc1 {[%emt 0:00:23]} Nd7 {[%emt 0:00:22]} 12. Qc2 {[%emt 0:00:13]} Nc5 {[%emt 0:01:08]} 13. Be3 {[%emt 0:00:51]} Bd7 {[%emt 0:01:22]} 14. Qd2 {[%emt 0:04:23]} Kh7 {[%emt 0:00:28]} 15. Bxc5 {[%emt 0:00:03]} dxc5 {[%emt 0:00:02]} 16. Ne1 {[%emt 0:00:05]} b6 {[%emt 0:03:34]} 17. Nd3 {[%emt 0:00:25]} Nc8 {[%emt 0:00:54]} 18. f4 {[%emt 0:00:31]} exf4 {[%emt 0:00:52]} 19. Qxf4 {[%emt 0:00:20]} f6 {[%emt 0:02:53]} 20. Qg3 {[%emt 0:00:53]} Nd6 {[%emt 0:00:31]} 21. Nf4 {[%emt 0:00:19]} Qe8 {[%emt 0:00:15]} 22. Bd3 {[%emt 0:00:03]} f5 {[%emt 0:00:19]} 23. exf5 {[%emt 0:01:31]} Nxf5 {[%emt 0:00:32]} 24. Qxg6+ {[%emt 0:03:23]} Qxg6 {[%emt 0:00:07]} 25. Nxg6 {[%emt 0:00:01]} Bd4+ {[%emt 0:00:37]} 26. Kh1 {[%emt 0:00:02]} Kxg6 {[%emt 0:00:03]} 27. g4 {[%emt 0:00:04]} Bxc3 {[%emt 0:01:02]} 28. Rxc3 {[%emt 0:03:28]} Rae8 {[%emt 0:00:01]} 29. Bb1 {[%emt 0:00:58]} Re2 {[%emt 0:01:11]} 30. gxf5+ {[%emt 0:00:09]} Kf6 {[%emt 0:00:09]} 31. b3 {[%emt 0:00:41]} Rg8 {[%emt 0:00:24]} 32. Rh3 {[%emt 0:00:02]} Rh8 {[%emt 0:00:23]} 33. Rg3 {[%emt 0:00:30]} Be8 {[%emt 0:00:00]} 34. Rg2 {[%emt 0:00:12]} Re3 {[%emt 0:00:06]} 35. Kg1 {[%emt 0:00:09]} Bh5 {[%emt 0:00:16]} 36. Bc2 {[%emt 0:00:14]} Rhe8 {[%emt 0:00:24]} 37. a4 {[%emt 0:00:02]} Rc3 {[%emt 0:00:22]} 38. Rff2 {[%emt 0:00:43]} Re1+ {[%emt 0:00:07]} 39. Rf1 {[%emt 0:00:01]} Re2 {[%emt 0:00:14]} 40. Bd1 {[%emt 0:00:37]} Rxg2+ {[%emt 0:00:12]} 41. Kxg2 {[%emt 0:00:00]} Bxd1 {[%emt 0:00:09]} 42. Rxd1 {[%emt 0:00:02]} Rxb3 {[%emt 0:00:03]} 43. d6 {[%emt 0:00:00]} cxd6 {[%emt 0:00:03]} 44. Rxd6+ {[%emt 0:00:01]} Kxf5 {[%emt 0:00:02]} 45. Rxh6 {[%emt 0:00:00]} Rb4 {[%emt 0:00:13]} 46. Kf3 {[%emt 0:00:04]} Rxa4 {[%emt 0:00:13]} 47. Rxb6 {[%emt 0:00:01]} Rxc4 {[%emt 0:00:02]} 48. Ke3 {[%emt 0:00:08]} Ke5 {[%emt 0:00:17]} 49. Kd3 {[%emt 0:00:05]} Kd5 {[%emt 0:00:09]} 50. Ra6 {[%emt 0:00:08]} a4 {[%emt 0:00:08]} 51. Ra8 {[%emt 0:00:06]} Rd4+ {[%emt 0:00:14]} 52. Kc3 {[%emt 0:00:05]} Rc4+ {[%emt 0:00:02]} 53. Kd3 {[%emt 0:00:03]} Rh4 {[%emt 0:00:06]} 54. Rd8+ {[%emt 0:00:22]} Kc6 {[%emt 0:00:01]} 55. Rc8+ {[%emt 0:00:02]} Kb5 {[%emt 0:00:04]} 56. Rb8+ {[%emt 0:00:05]} Ka5 {[%emt 0:00:01]} 57. h3 {[%emt 0:01:05]} a3 {[%emt 0:00:27]} 58. Kc3 {[%emt 0:00:08]} Rxh3+ {[%emt 0:00:17]} 59. Kc4 {[%emt 0:00:03]} Rh4+ {[%emt 0:00:05]} 60. Kc3 {[%emt 0:00:39]} Ra4 {[%emt 0:00:50]} 61. Ra8+ {[%emt 0:00:13]} Kb5 {[%emt 0:00:01]} 62. Rb8+ {[%emt 0:00:01]} Kc6 {[%emt 0:00:03]} 63. Rb1 {[%emt 0:00:03]} a2 {[%emt 0:00:12]} 64. Ra1 {[%emt 0:00:02]} Kb5 {[%emt 0:00:13]} 65. Kb3 {[%emt 0:00:04]} c4+ {[%emt 0:00:06]} 66. Kb2 {[%emt 0:00:01]} Kb4 {[%emt 0:00:02]} 0-1

[Event "RUS-chT Men Rapid 2019"]
[Site "Sochi"]
[Date "2019.10.18"]
[Round "3.7"]
[White "Morozevich, Alexander"]
[Black "Gutenev, Alexander"]
[Result "1/2-1/2"]
[ECO "B89"]
[WhiteElo "2659"]
[BlackElo "2469"]
[Annotator "RC"]
[PlyCount "55"]
[EventDate "2019.10.18"]
[EventType "swiss"]
[EventCountry "RUS"]
[SourceTitle "playchess.com"]
[Source "ChessBase"]
[SourceQuality "1"]
[TimeControl "900+10"]

1. e4 {[%emt 0:00:06]} c5 {[%emt 0:00:00]} 2. Nf3 {[%emt 0:00:11]} Nc6 {[%emt 0:00:00]} 3. d4 {[%emt 0:00:07]} cxd4 {[%emt 0:00:00]} 4. Nxd4 {[%emt 0:00:01]} Nf6 {[%emt 0:00:00]} 5. Nc3 {[%emt 0:00:01]} d6 {[%emt 0:00:00]} 6. Bc4 {[%emt 0:00:32]} e6 {[%emt 0:00:09]} 7. Be3 {[%emt 0:00:03]} a6 {[%emt 0:00:08]} 8. Bb3 {[%emt 0:00:04]} Qc7 {[%emt 0:00:26]} 9. f4 {[%emt 0:01:51]} Na5 {[%emt 0:01:26]} 10. f5 {[%emt 0:05:35]} Nxb3 11. axb3 {[%emt 0:00:50]} Be7 {[%emt 0:01:50]} 12. g4 {[%emt 0:00:51]} d5 {[%emt 0:04:16]} 13. exd5 {[%emt 0:00:12]} Qe5 {[%emt 0:00:35]} 14. Qe2 {[%emt 0:03:09]} Nxg4 {[%emt 0:00:26]} 15. Qxg4 {[%emt 0:01:30]} Qxe3+ {[%emt 0:00:04]} 16. Nde2 {[%emt 0:00:01]} O-O {[%emt 0:04:47]} 17. fxe6 {[%emt 0:00:01]} fxe6 {[%emt 0:00:10]} 18. Qd4 {[%emt 0:00:01]} Qxd4 {[%emt 0:00:22]} 19. Nxd4 {[%emt 0:00:01]} Bh4+ {[%emt 0:00:11]} 20. Ke2 {[%emt 0:00:22]} Rf2+ {[%emt 0:01:08]} 21. Ke3 {[%emt 0:00:16]} exd5 {[%emt 0:01:17]} 22. Raf1 {[%emt 0:00:50]} Rxf1 {[%emt 0:00:07]} 23. Rxf1 {[%emt 0:00:01]} Bh3 {[%emt 0:00:04]} 24. Rf3 {[%emt 0:00:48]} Bg4 {[%emt 0:00:17]} 25. Rf1 {[%emt 0:00:07]} Bh3 {[%emt 0:00:02]} 26. Rf3 {[%emt 0:00:00]} Bg4 {[%emt 0:00:23]} 27. Rf1 {[%emt 0:00:01]} Bh3 {[%emt 0:00:21]} 28. Ra1 1/2-1/2

[Event "RUS-chT Men Rapid 2019"]
[Site "Sochi"]
[Date "2019.10.18"]
[Round "3.9"]
[White "Zakhartsov, Vladimir"]
[Black "Goryachkina, Aleksandra"]
[Result "0-1"]
[ECO "E10"]
[WhiteElo "2514"]
[BlackElo "2575"]
[Annotator "ChessBase"]
[PlyCount "82"]
[EventDate "2019.10.18"]
[EventType "swiss"]
[EventCountry "RUS"]
[SourceTitle "playchess.com"]
[Source "ChessBase"]
[SourceQuality "1"]
[TimeControl "900+10"]

1. d4 {[%emt 0:00:00]} Nf6 {[%emt 0:00:00]} 2. c4 {[%emt 0:00:00]} e6 {[%emt 0:00:00]} 3. Nf3 {[%emt 0:00:00]} d5 {[%emt 0:00:00]} 4. g3 {[%emt 0:00:06]} Bb4+ {[%emt 0:00:23]} 5. Bd2 {[%emt 0:00:17]} Be7 {[%emt 0:00:03]} 6. Bg2 {[%emt 0:00:10]} O-O {[%emt 0:00:04]} 7. O-O {[%emt 0:00:23]} Nbd7 {[%emt 0:00:05]} 8. Qc2 {[%emt 0:00:14]} c6 {[%emt 0:00:07]} 9. b3 {[%emt 0:01:12]} b6 {[%emt 0:00:53]} 10. Bf4 {[%emt 0:01:18]} Bb7 {[%emt 0:00:37]} 11. Nc3 {[%emt 0:00:16]} Nh5 {[%emt 0:01:18]} 12. Bc1 {[%emt 0:00:21]} Nhf6 {[%emt 0:00:12]} 13. Rd1 {[%emt 0:00:18]} Rc8 {[%emt 0:00:59]} 14. Bb2 {[%emt 0:00:48]} Ba6 {[%emt 0:00:30]} 15. e4 {[%emt 0:00:42]} dxc4 {[%emt 0:01:44]} 16. Qe2 {[%emt 0:00:47]} b5 {[%emt 0:00:20]} 17. bxc4 {[%emt 0:00:11]} bxc4 {[%emt 0:00:08]} 18. Rac1 {[%emt 0:01:01]} Re8 {[%emt 0:00:42]} 19. Rc2 {[%emt 0:00:29]} Qa5 {[%emt 0:00:10]} 20. Ba1 {[%emt 0:01:04]} h6 {[%emt 0:00:46]} 21. Ne5 {[%emt 0:00:25]} Nxe5 {[%emt 0:02:03]} 22. dxe5 {[%emt 0:00:01]} Nh7 {[%emt 0:00:12]} 23. Rd7 {[%emt 0:01:06]} Nf8 {[%emt 0:00:28]} 24. Rd1 {[%emt 0:00:40]} Ng6 {[%emt 0:00:04]} 25. f4 {[%emt 0:00:07]} Red8 {[%emt 0:00:11]} 26. Rxd8+ {[%emt 0:01:27]} Rxd8 {[%emt 0:00:02]} 27. Bf1 {[%emt 0:00:02]} Rd3 {[%emt 0:01:39]} 28. Nd1 {[%emt 0:00:20]} c3 {[%emt 0:01:50]} 29. Qxd3 {[%emt 0:04:08]} Bxd3 30. Bxd3 {[%emt 0:00:01]} Qb6+ {[%emt 0:00:32]} 31. Rf2 {[%emt 0:00:38]} Bc5 {[%emt 0:00:13]} 32. Bxc3 {[%emt 0:00:05]} Bxf2+ {[%emt 0:00:27]} 33. Nxf2 {[%emt 0:00:01]} Qc5 {[%emt 0:00:01]} 34. Bd2 {[%emt 0:00:25]} Qd4 {[%emt 0:00:02]} 35. Kf1 {[%emt 0:00:16]} c5 {[%emt 0:00:09]} 36. Ke2 {[%emt 0:00:04]} c4 {[%emt 0:00:02]} 37. Bc2 {[%emt 0:00:06]} Qb2 {[%emt 0:00:04]} 38. Kd1 {[%emt 0:00:10]} Ne7 {[%emt 0:00:11]} 39. Ng4 {[%emt 0:00:12]} Nc6 {[%emt 0:00:16]} 40. Ne3 {[%emt 0:00:03]} Nd4 {[%emt 0:00:13]} 41. Bc1 {[%emt 0:00:06]} Qxa2 {[%emt 0:00:07]} 0-1

[Event "RUS-chT Men Rapid 2019"]
[Site "Sochi"]
[Date "2019.10.18"]
[Round "3.10"]
[White "Pridorozhni, Aleksei"]
[Black "Bryakin, Mikhail"]
[Result "1-0"]
[ECO "B11"]
[WhiteElo "2599"]
[BlackElo "2440"]
[Annotator "ChessBase"]
[PlyCount "115"]
[EventDate "2019.10.18"]
[EventType "swiss"]
[EventCountry "RUS"]
[SourceTitle "playchess.com"]
[Source "ChessBase"]
[SourceQuality "1"]
[TimeControl "900+10"]

1. e4 {[%emt 0:00:00]} c6 {[%emt 0:00:21]} 2. Nc3 {[%emt 0:00:00]} d5 {[%emt 0:00:05]} 3. Nf3 {[%emt 0:00:00]} Bg4 {[%emt 0:00:09]} 4. h3 {[%emt 0:00:00]} Bxf3 {[%emt 0:00:02]} 5. Qxf3 {[%emt 0:00:00]} e6 {[%emt 0:00:01]} 6. a3 {[%emt 0:00:01]} Nd7 {[%emt 0:00:19]} 7. d3 {[%emt 0:00:03]} Ngf6 {[%emt 0:00:05]} 8. g3 {[%emt 0:00:03]} a5 {[%emt 0:00:06]} 9. Bg2 {[%emt 0:00:03]} Bc5 {[%emt 0:00:04]} 10. O-O {[%emt 0:00:04]} O-O {[%emt 0:00:03]} 11. Qe2 {[%emt 0:00:04]} dxe4 {[%emt 0:00:08]} 12. dxe4 {[%emt 0:00:03]} e5 {[%emt 0:00:09]} 13. Kh2 {[%emt 0:01:08]} Re8 {[%emt 0:00:19]} 14. Bd2 {[%emt 0:02:29]} a4 {[%emt 0:00:26]} 15. Rae1 {[%emt 0:00:11]} Qc7 {[%emt 0:00:10]} 16. f4 {[%emt 0:01:04]} b5 {[%emt 0:00:32]} 17. f5 {[%emt 0:00:14]} h6 {[%emt 0:00:11]} 18. h4 {[%emt 0:00:17]} Nh7 {[%emt 0:00:15]} 19. Nd1 {[%emt 0:00:08]} Bd4 {[%emt 0:01:47]} 20. Bc1 {[%emt 0:00:08]} Rad8 {[%emt 0:01:10]} 21. Nf2 {[%emt 0:00:03]} Qa7 {[%emt 0:01:49]} 22. Nh3 {[%emt 0:00:06]} Rb8 {[%emt 0:01:05]} 23. g4 {[%emt 0:00:08]} f6 {[%emt 0:00:11]} 24. Bf3 {[%emt 0:00:05]} Rf8 {[%emt 0:00:56]} 25. Rd1 {[%emt 0:00:07]} Rbd8 {[%emt 0:00:19]} 26. Bg2 {[%emt 0:00:29]} Bc5 {[%emt 0:00:44]} 27. Rd3 {[%emt 0:00:14]} Be7 {[%emt 0:00:02]} 28. Rg3 {[%emt 0:00:11]} Qd4 {[%emt 0:00:24]} 29. Rd1 {[%emt 0:00:20]} Qa7 {[%emt 0:00:16]} 30. Bf3 {[%emt 0:00:09]} Nb6 {[%emt 0:01:16]} 31. Rdg1 {[%emt 0:00:22]} Nc4 {[%emt 0:00:15]} 32. g5 {[%emt 0:01:00]} fxg5 {[%emt 0:00:22]} 33. hxg5 {[%emt 0:00:02]} Bxg5 {[%emt 0:00:35]} 34. Nxg5 {[%emt 0:00:05]} Nxg5 {[%emt 0:00:15]} 35. Bh5 {[%emt 0:00:14]} Rd4 {[%emt 0:00:59]} 36. Rxg5 {[%emt 0:00:44]} hxg5 {[%emt 0:00:09]} 37. Bg6 {[%emt 0:00:03]} Rfd8 {[%emt 0:01:53]} 38. Qh5 {[%emt 0:01:02]} Rd2+ {[%emt 0:00:01]} 39. Rg2 {[%emt 0:00:53]} Rxg2+ {[%emt 0:00:30]} 40. Kxg2 {[%emt 0:00:01]} Ne3+ {[%emt 0:00:30]} 41. Kf3 {[%emt 0:00:03]} g4+ {[%emt 0:00:39]} 42. Ke2 {[%emt 0:00:02]} Qd4 {[%emt 0:00:47]} 43. Qh7+ {[%emt 0:00:02]} Kf8 {[%emt 0:00:00]} 44. Qh8+ {[%emt 0:00:01]} Ke7 {[%emt 0:00:01]} 45. Qxg7+ {[%emt 0:00:02]} Kd6 {[%emt 0:00:00]} 46. Bxe3 {[%emt 0:00:02]} Qxe4 {[%emt 0:00:23]} 47. f6 {[%emt 0:02:09]} Qf3+ {[%emt 0:00:20]} 48. Kd2 {[%emt 0:00:02]} Rd7 {[%emt 0:00:32]} 49. f7 {[%emt 0:01:34]} Kc7+ {[%emt 0:00:09]} 50. Bd3 {[%emt 0:00:02]} Rxf7 {[%emt 0:00:54]} 51. Qxe5+ {[%emt 0:00:02]} Kb7 {[%emt 0:00:19]} 52. Qd4 {[%emt 0:00:24]} g3 {[%emt 0:00:28]} 53. Be4 {[%emt 0:00:28]} Qf6 {[%emt 0:00:11]} 54. Qb6+ {[%emt 0:00:34]} Kc8 {[%emt 0:00:01]} 55. Bxc6 {[%emt 0:00:08]} Qd6+ {[%emt 0:00:19]} 56. Ke2 {[%emt 0:00:03]} Rf6 {[%emt 0:00:12]} 57. Qb7+ {[%emt 0:00:04]} Kd8 {[%emt 0:00:01]} 58. Bb6+ {[%emt 0:00:01]} 1-0

[Event "RUS-chT Men Rapid 2019"]
[Site "Sochi"]
[Date "2019.10.18"]
[Round "3.11"]
[White "Golubov, Saveliy"]
[Black "Potapov, Pavel"]
[Result "1-0"]
[ECO "A82"]
[WhiteElo "2469"]
[BlackElo "2489"]
[Annotator "ChessBase"]
[PlyCount "84"]
[EventDate "2019.10.18"]
[EventType "swiss"]
[EventCountry "RUS"]
[SourceTitle "playchess.com"]
[Source "ChessBase"]
[SourceQuality "1"]
[TimeControl "900+10"]

1. d4 {[%emt 0:00:07]} f5 {[%emt 0:00:00]} 2. e4 {[%emt 0:01:14]} fxe4 {[%emt 0:00:00]} 3. Nc3 {[%emt 0:00:59]} Nf6 {[%emt 0:00:00]} 4. f3 {[%emt 0:00:26]} e3 {[%emt 0:01:09]} 5. Bxe3 {[%emt 0:00:13]} d5 {[%emt 0:00:04]} 6. Bd3 {[%emt 0:00:27]} c5 {[%emt 0:00:49]} 7. dxc5 {[%emt 0:00:48]} e5 {[%emt 0:01:36]} 8. Bf2 {[%emt 0:02:41]} Nc6 {[%emt 0:00:40]} 9. Nge2 {[%emt 0:00:21]} Qa5 {[%emt 0:03:45]} 10. O-O {[%emt 0:03:50]} Bxc5 {[%emt 0:00:05]} 11. Bxc5 {[%emt 0:00:03]} Qxc5+ {[%emt 0:00:02]} 12. Kh1 {[%emt 0:00:01]} O-O {[%emt 0:00:07]} 13. Qd2 {[%emt 0:00:51]} Be6 {[%emt 0:00:49]} 14. a3 {[%emt 0:00:16]} Rae8 {[%emt 0:00:16]} 15. b4 {[%emt 0:00:13]} Qe7 {[%emt 0:00:15]} 16. Ng3 {[%emt 0:00:44]} Qf7 {[%emt 0:00:42]} 17. Rae1 {[%emt 0:00:19]} Nh5 {[%emt 0:00:58]} 18. b5 {[%emt 0:00:26]} Nxg3+ {[%emt 0:00:19]} 19. hxg3 {[%emt 0:00:01]} Qh5+ {[%emt 0:00:02]} 20. Kg1 {[%emt 0:00:02]} Nd4 {[%emt 0:00:01]} 21. Qe3 {[%emt 0:02:27]} Bf7 {[%emt 0:01:29]} 22. Qd2 {[%emt 0:00:54]} Be6 {[%emt 0:00:18]} 23. Qe3 {[%emt 0:00:05]} Bf7 {[%emt 0:00:01]} 24. Qf2 {[%emt 0:00:38]} Rc8 {[%emt 0:00:33]} 25. f4 {[%emt 0:00:13]} Be6 {[%emt 0:01:16]} 26. Nd1 {[%emt 0:00:02]} Bg4 {[%emt 0:00:34]} 27. Ne3 {[%emt 0:00:24]} Rce8 {[%emt 0:00:46]} 28. Nxd5 {[%emt 0:00:13]} Re6 {[%emt 0:00:15]} 29. Qe3 {[%emt 0:00:27]} Rh6 {[%emt 0:01:00]} 30. Qxe5 {[%emt 0:00:04]} Qh2+ {[%emt 0:00:44]} 31. Kf2 {[%emt 0:00:01]} Rh3 {[%emt 0:01:03]} 32. Ne7+ {[%emt 0:00:35]} Kh8 {[%emt 0:00:03]} 33. f5 {[%emt 0:00:00]} Nf3 {[%emt 0:00:25]} 34. Qd6 {[%emt 0:00:15]} Qxg2+ {[%emt 0:00:03]} 35. Ke3 {[%emt 0:00:05]} Qd2+ {[%emt 0:00:09]} 36. Ke4 {[%emt 0:00:03]} Nxe1 {[%emt 0:00:25]} 37. f6 {[%emt 0:00:23]} Bf3+ {[%emt 0:00:12]} 38. Rxf3 {[%emt 0:00:01]} gxf6 {[%emt 0:00:09]} 39. Ng6+ {[%emt 0:00:20]} hxg6 {[%emt 0:00:01]} 40. Qxf8+ {[%emt 0:00:01]} Kh7 {[%emt 0:00:01]} 41. Rxf6 {[%emt 0:00:13]} Qg2+ {[%emt 0:00:10]} 42. Kd4 {[%emt 0:00:12]} Nxc2+ {[%emt 0:00:28] Ke4} 1-0

[Event "RUS-chT Men Rapid 2019"]
[Site "Sochi"]
[Date "2019.10.18"]
[Round "3.12"]
[White "Belyakov, Bogdan"]
[Black "Apryshko, Gleb"]
[Result "1/2-1/2"]
[ECO "C12"]
[WhiteElo "2495"]
[BlackElo "2382"]
[Annotator "ChessBase"]
[PlyCount "50"]
[EventDate "2019.10.18"]
[EventType "swiss"]
[EventCountry "RUS"]
[SourceTitle "playchess.com"]
[Source "ChessBase"]
[SourceQuality "1"]
[TimeControl "900+10"]

1. e4 {[%emt 0:00:00]} e6 {[%emt 0:00:15]} 2. d4 {[%emt 0:00:00]} d5 {[%emt 0:00:01]} 3. Nc3 {[%emt 0:00:00]} Nf6 {[%emt 0:00:04]} 4. Bg5 {[%emt 0:00:03]} Bb4 {[%emt 0:00:56]} 5. Nge2 {[%emt 0:00:09]} dxe4 {[%emt 0:00:31]} 6. a3 {[%emt 0:00:03]} Be7 {[%emt 0:00:05]} 7. Bxf6 {[%emt 0:00:03]} Bxf6 {[%emt 0:00:05]} 8. Nxe4 {[%emt 0:00:02]} Bd7 {[%emt 0:00:06]} 9. g3 {[%emt 0:02:58]} Bc6 {[%emt 0:00:17]} 10. Bg2 {[%emt 0:00:02]} g6 {[%emt 0:02:21]} 11. O-O {[%emt 0:01:47]} Bg7 {[%emt 0:00:03]} 12. c4 {[%emt 0:00:02]} Nd7 {[%emt 0:02:55]} 13. b4 {[%emt 0:03:32]} Bxe4 {[%emt 0:00:15]} 14. Bxe4 {[%emt 0:00:02]} c6 {[%emt 0:00:02]} 15. Rb1 {[%emt 0:00:14]} Nf6 {[%emt 0:00:56]} 16. Bg2 {[%emt 0:00:04]} a6 {[%emt 0:00:03]} 17. a4 {[%emt 0:01:42]} O-O {[%emt 0:00:12]} 18. b5 {[%emt 0:00:01]} axb5 {[%emt 0:00:18]} 19. axb5 {[%emt 0:00:02]} Qd7 {[%emt 0:00:30]} 20. bxc6 {[%emt 0:00:04]} bxc6 {[%emt 0:00:01]} 21. Rb6 {[%emt 0:00:06]} Rac8 {[%emt 0:01:18]} 22. Qb3 {[%emt 0:03:22]} c5 {[%emt 0:01:03]} 23. Rb7 {[%emt 0:00:06]} Qd6 {[%emt 0:00:11]} 24. Rb6 {[%emt 0:00:19]} Qd7 {[%emt 0:00:12]} 25. Rb7 {[%emt 0:00:02]} Qd6 {[%emt 0:00:01]} 1/2-1/2

[Event "RUS-chT Men Rapid 2019"]
[Site "Sochi"]
[Date "2019.10.18"]
[Round "3.13"]
[White "Drygalov, Andrey"]
[Black "Kokarev, Dmitry"]
[Result "0-1"]
[ECO "B90"]
[WhiteElo "2484"]
[BlackElo "2593"]
[Annotator "ChessBase"]
[PlyCount "104"]
[EventDate "2019.10.18"]
[EventType "swiss"]
[EventCountry "RUS"]
[SourceTitle "playchess.com"]
[Source "ChessBase"]
[SourceQuality "1"]
[TimeControl "900+10"]

1. e4 {[%emt 0:00:00]} c5 {[%emt 0:00:00]} 2. Nf3 {[%emt 0:00:00]} d6 {[%emt 0:00:00]} 3. d4 {[%emt 0:00:00]} Nf6 {[%emt 0:00:00]} 4. Nc3 {[%emt 0:00:00]} cxd4 {[%emt 0:00:00]} 5. Nxd4 {[%emt 0:00:00]} a6 {[%emt 0:00:00]} 6. Be3 {[%emt 0:00:00]} e5 {[%emt 0:00:02]} 7. Nb3 {[%emt 0:00:02]} Be6 {[%emt 0:00:05]} 8. f3 {[%emt 0:00:05]} Nbd7 {[%emt 0:00:05]} 9. Qd2 {[%emt 0:00:02]} Be7 {[%emt 0:00:10]} 10. O-O-O {[%emt 0:00:14]} b5 {[%emt 0:00:04]} 11. g4 {[%emt 0:00:05]} h6 {[%emt 0:00:02]} 12. Kb1 {[%emt 0:00:24]} Nb6 {[%emt 0:00:44]} 13. Qf2 {[%emt 0:00:07]} Nfd7 {[%emt 0:00:02]} 14. h4 {[%emt 0:01:03]} Qc7 {[%emt 0:00:04]} 15. Rh2 {[%emt 0:01:37]} Nc4 {[%emt 0:00:04]} 16. Bxc4 {[%emt 0:00:09]} bxc4 {[%emt 0:00:02]} 17. Nc1 {[%emt 0:00:15]} Rb8 {[%emt 0:00:04]} 18. N1e2 {[%emt 0:00:49]} O-O {[%emt 0:03:33]} 19. Ka1 {[%emt 0:02:02]} Qb7 {[%emt 0:00:34]} 20. Bc1 {[%emt 0:02:09]} Rfc8 {[%emt 0:00:22]} 21. g5 {[%emt 0:00:50]} h5 {[%emt 0:00:02]} 22. f4 {[%emt 0:00:16]} Bg4 {[%emt 0:01:09]} 23. Rf1 {[%emt 0:00:49]} Bd8 {[%emt 0:00:19]} 24. fxe5 {[%emt 0:03:30]} Nxe5 {[%emt 0:00:05]} 25. Qg3 {[%emt 0:00:18]} Ba5 {[%emt 0:03:42]} 26. Nd5 {[%emt 0:01:18]} Bd2 {[%emt 0:00:50]} 27. Qa3 {[%emt 0:00:43]} Bxe2 {[%emt 0:01:48]} 28. Rxe2 {[%emt 0:00:03]} c3 {[%emt 0:00:04]} 29. b3 {[%emt 0:01:01]} Qb5 {[%emt 0:00:05]} 30. Ref2 {[%emt 0:01:02]} Nc4 {[%emt 0:00:02]} 31. Qa4 {[%emt 0:00:04]} Qxa4 {[%emt 0:00:02]} 32. bxa4 {[%emt 0:00:01]} Rb7 {[%emt 0:00:12]} 33. Bxd2 {[%emt 0:00:12]} cxd2 {[%emt 0:00:05]} 34. Rd1 {[%emt 0:00:49]} Na3 {[%emt 0:00:31]} 35. Rfxd2 {[%emt 0:00:28]} Nxc2+ {[%emt 0:00:10]} 36. Rxc2 {[%emt 0:00:01]} Rxc2 {[%emt 0:00:01]} 37. a3 {[%emt 0:00:00]} Rc4 {[%emt 0:00:18]} 38. Re1 {[%emt 0:00:29]} Rxa4 {[%emt 0:00:15]} 39. Ka2 {[%emt 0:00:02]} Rc4 {[%emt 0:00:05]} 40. Re2 {[%emt 0:00:01]} Rb8 {[%emt 0:00:24]} 41. Ne7+ {[%emt 0:00:03]} Kf8 {[%emt 0:00:08]} 42. Nf5 {[%emt 0:00:00]} Rb6 {[%emt 0:00:26]} 43. Rf2 {[%emt 0:00:20]} g6 {[%emt 0:00:17]} 44. Ne3 {[%emt 0:00:03]} Rxe4 {[%emt 0:00:08]} 45. Nd5 {[%emt 0:00:01]} Rb7 {[%emt 0:00:06]} 46. Nf6 {[%emt 0:00:01]} Rxh4 {[%emt 0:01:45]} 47. Re2 {[%emt 0:00:55]} Re7 {[%emt 0:00:02]} 48. Rc2 {[%emt 0:00:01]} Rhe4 {[%emt 0:00:11]} 49. Rc8+ {[%emt 0:00:12]} Re8 {[%emt 0:00:02]} 50. Nxe8 {[%emt 0:00:01]} Rxe8 {[%emt 0:00:02]} 51. Rc6 {[%emt 0:00:01]} a5 {[%emt 0:00:06]} 52. Rxd6 {[%emt 0:00:02]} Re5 {[%emt 0:00:01]} 0-1